Cogmind - Beta 10.1 @@@ ROGUE MODE // 2020.09.22 @ 11:07:54 Player: zzxc Result: Escaped! Performance ------------- Evolutions (9) 4500 Regions Visited (13) 2600 Robots Destroyed (4) 20 Value Destroyed (40) 40 Prototype IDs (0) 0 Alien Tech Used (0) 0 Bonus (10219) 10219 TOTAL SCORE: 17379 Bonus ------- Pacifist 200 Follower Combat Kills 42 Aligned with FarCom 300 Win 3000 Win Speed 6677 Cogmind --------- Core Integrity 1600/1600 Matter 300/300 Energy 98/100 System Corruption 0% Temperature Cool (0) Movement Core (50) Location To Epsilon Eridani Parts ------- > --- POWER (19) ------- (None) > --- PROPULSION (2) --- (None) > --- UTILITY (2) ------ (None) > --- WEAPON (2) ------- (None) > --- INVENTORY (4) ---- Nuclear Core Reinforced Deuterium Engine Light Fission Core Peak State ------------ > --- POWER ------------ (None) > --- PROPULSION ------- (None) > --- UTILITY ---------- (None) > --- WEAPON ----------- (None) > --- INVENTORY -------- Nuclear Core Reinforced Deuterium Engine Light Fission Core [Rating: 1] Favorites ----------- Power None Propulsion None Utility None Weapon None Build | -11 -10 -9 -9 -9 -8 -8 -7 -6 -5 -4 -3 -2 -1 ------- Run | Scr Mat Mat Min Exi Min Mat Fac Fac Fac Fac Res Res Acc Slots Evolved 18 | . . 2 . . . 2 2 2 2 2 2 2 2 Power 18 | . . 2 . . . 2 2 2 2 2 2 2 2 Propulsion . | . . . . . . . . . . . . . . Utility . | . . . . . . . . . . . . . . Weapon . | . . . . . . . . . . . . . . Parts Attached . | . . . . . . . . . . . . . . Power . | . . . . . . . . . . . . . . Engine . | . . . . . . . . . . . . . . Core . | . . . . . . . . . . . . . . Reactor . | . . . . . . . . . . . . . . Propulsion . | . . . . . . . . . . . . . . Treads . | . . . . . . . . . . . . . . Leg . | . . . . . . . . . . . . . . Wheel . | . . . . . . . . . . . . . . Hover . | . . . . . . . . . . . . . . Flight . | . . . . . . . . . . . . . . Utility . | . . . . . . . . . . . . . . Device . | . . . . . . . . . . . . . . Storage . | . . . . . . . . . . . . . . Processor . | . . . . . . . . . . . . . . Hackware . | . . . . . . . . . . . . . . Protection . | . . . . . . . . . . . . . . Artifact . | . . . . . . . . . . . . . . Weapon . | . . . . . . . . . . . . . . Energy Gun . | . . . . . . . . . . . . . . Energy Cannon . | . . . . . . . . . . . . . . Ballistic Gun . | . . . . . . . . . . . . . . Ballistic Cannon . | . . . . . . . . . . . . . . Launcher . | . . . . . . . . . . . . . . Special Weapon . | . . . . . . . . . . . . . . Impact Weapon . | . . . . . . . . . . . . . . Slashing Weapon . | . . . . . . . . . . . . . . Piercing Weapon . | . . . . . . . . . . . . . . Special Melee Weapon . | . . . . . . . . . . . . . . Unidentified Prototypes . | . . . . . . . . . . . . . . Parts Lost . | . . . . . . . . . . . . . . Power . | . . . . . . . . . . . . . . Propulsion . | . . . . . . . . . . . . . . Utility . | . . . . . . . . . . . . . . Weapon . | . . . . . . . . . . . . . . Highest Loss Streak . | . . . . . . . . . . . . . . Average Slot Usage (%) . | . . . . . . . . . . . . . . Naked Turns 2559 | . 36 89 78 180 162 126 209 271 119 434 349 365 141 Heaviest Build . | . . . . . . . . . . . . . . Greatest Support 3 | 3 3 3 3 3 3 3 3 3 3 3 3 3 3 Greatest Overweight (x) . | . . . . . . . . . . . . . . Average Overweight (x) . | . . . . . . . . . . . . . . Largest Inventory Capacity 4 | 4 4 4 4 4 4 4 4 4 4 4 4 4 4 Average Capacity 4 | 4 4 4 4 4 4 4 4 4 4 4 4 4 4 Most Carried 3 | . . . . 3 3 3 3 3 3 3 3 3 3 Average Carried 2 | . . . . 2 3 3 3 3 3 3 3 3 3 Final Capacity 4 | 4 4 4 4 4 4 4 4 4 4 4 4 4 4 Final Carried 3 | . . . . 3 3 3 3 3 3 3 3 3 3 Class Distribution -------------------- 100% | Mutant Dominant Class ---------------- Mutant | -10/Materials Mutant | -9/Materials Mutant | -9/Mines Mutant | -9/Exiles Mutant | -8/Mines Mutant | -8/Materials Mutant | -7/Factory Mutant | -6/Factory Mutant | -5/Factory Mutant | -4/Factory Mutant | -3/Research Mutant | -2/Research Mutant | -1/Access Resources | -11 -10 -9 -9 -9 -8 -8 -7 -6 -5 -4 -3 -2 -1 ----------- Run | Scr Mat Mat Min Exi Min Mat Fac Fac Fac Fac Res Res Acc Matter Collected 101 | 41 . 60 . . . . . . . . . . . Remotely . | . . . . . . . . . . . . . . Salvage Created 80 | . . 80 . . . . . . . . . . . Parts 13 | . . 13 . . . . . . . . . . . Haulers Intercepted . | . . . . . . . . . . . . . . Recyclers Shooed . | . . . . . . . . . . . . . . Parts Field Recycled . | . . . . . . . . . . . . . . Retrieved Matter . | . . . . . . . . . . . . . . Parts Self-Destructed . | . . . . . . . . . . . . . . Prevented . | . . . . . . . . . . . . . . Kills | -11 -10 -9 -9 -9 -8 -8 -7 -6 -5 -4 -3 -2 -1 ------- Run | Scr Mat Mat Min Exi Min Mat Fac Fac Fac Fac Res Res Acc Combat Hostiles Destroyed 4 | . . 4 . . . . . . . . . . . Melee 4 | . . 4 . . . . . . . . . . . Classes Destroyed 1 | . . 1 . . . . . . . . . . . Swarmer 4 | . . 4 . . . . . . . . . . . Best Kill Streak 4 | . . 4 . . . . . . . . . . . Combat Bots Only 4 | . . 4 . . . . . . . . . . . Max Kills in Single Turn 1 | . . 1 . . . . . . . . . . . Gunslinging . | . . . . . . . . . . . . . . Exploded . | . . . . . . . . . . . . . . Melee 1 | . . 1 . . . . . . . . . . . Uniques/NPCs Destroyed . | . . . . . . . . . . . . . . Combat | -11 -10 -9 -9 -9 -8 -8 -7 -6 -5 -4 -3 -2 -1 -------- Run | Scr Mat Mat Min Exi Min Mat Fac Fac Fac Fac Res Res Acc Damage Taken 2176 | . 142 299 . . 14 153 304 . 271 305 270 418 . Core 2176 | . 142 299 . . 14 153 304 . 271 305 270 418 . Absorbed by Shields . | . . . . . . . . . . . . . . Core Remaining (%) 71 | 100 43 . . . 21 72 56 100 72 73 79 71 100 Volleys Fired . | . . . . . . . . . . . . . . Largest . | . . . . . . . . . . . . . . Hottest . | . . . . . . . . . . . . . . Shots Fired . | . . . . . . . . . . . . . . Gun . | . . . . . . . . . . . . . . Cannon . | . . . . . . . . . . . . . . Launcher . | . . . . . . . . . . . . . . Special . | . . . . . . . . . . . . . . Kinetic . | . . . . . . . . . . . . . . Thermal . | . . . . . . . . . . . . . . Explosive . | . . . . . . . . . . . . . . Electromagnetic . | . . . . . . . . . . . . . . Robot Hit Streak . | . . . . . . . . . . . . . . Robot Miss Streak . | . . . . . . . . . . . . . . Penetration Max . | . . . . . . . . . . . . . . Secondary Targets . | . . . . . . . . . . . . . . Shots Hit Robots . | . . . . . . . . . . . . . . Core Hits 15 | . . 13 . . . . . . 1 . 1 . . Critical Hits . | . . . . . . . . . . . . . . Critical Kills . | . . . . . . . . . . . . . . Critical Parts Destroyed . | . . . . . . . . . . . . . . Melee Attacks . | . . . . . . . . . . . . . . Impact . | . . . . . . . . . . . . . . Slashing . | . . . . . . . . . . . . . . Piercing . | . . . . . . . . . . . . . . Sneak Attacks . | . . . . . . . . . . . . . . Combat Hostiles . | . . . . . . . . . . . . . . Follow-up Attacks . | . . . . . . . . . . . . . . Damage Inflicted 85 | . . 67 . . . . . . 1 . 17 . . Guns . | . . . . . . . . . . . . . . Cannons . | . . . . . . . . . . . . . . Explosions . | . . . . . . . . . . . . . . Melee . | . . . . . . . . . . . . . . Ramming 85 | . . 67 . . . . . . 1 . 17 . . Kinetic . | . . . . . . . . . . . . . . Thermal . | . . . . . . . . . . . . . . Explosive . | . . . . . . . . . . . . . . Electromagnetic . | . . . . . . . . . . . . . . Impact . | . . . . . . . . . . . . . . Slashing . | . . . . . . . . . . . . . . Piercing . | . . . . . . . . . . . . . . Highest Corruption 5 | . . 3 3 3 3 . . . . 5 1 5 . Average Corruption 2 | . . 2 3 3 3 . . . . 5 1 3 . Corruption Purged . | . . . . . . . . . . . . . . Effects 13 | . . 1 1 3 5 . . . . 2 1 . . Message Errors 9 | . . 1 1 2 3 . . . . 1 1 . . Matter Fused 1 | . . . . . 1 . . . . . . . . Heat Flow Errors 3 | . . . . 1 1 . . . . 1 . . . Overload Shots . | . . . . . . . . . . . . . . Overflow Damage . | . . . . . . . . . . . . . . Projectiles . | . . . . . . . . . . . . . . Explosions . | . . . . . . . . . . . . . . Melee . | . . . . . . . . . . . . . . Knockbacks . | . . . . . . . . . . . . . . Impact . | . . . . . . . . . . . . . . Kinetic . | . . . . . . . . . . . . . . Secondary . | . . . . . . . . . . . . . . Self-Inflicted Damage 36 | . . 28 . . . . . . . . 8 . . Shots . | . . . . . . . . . . . . . . Rammed 30 | . . 25 . . . . . . 2 . 2 1 . Targets Rammed 30 | . . 25 . . . . . . 2 . 2 1 . Kicked . | . . . . . . . . . . . . . . Crushed . | . . . . . . . . . . . . . . Highest Temperature 209 | . . . . 148 113 . . . . 209 . . . Average Temperature 85 | . . . . 78 57 . . . . 123 . . . Received Heat Transfer 372 | . . 18 . . . 54 123 . 90 51 27 9 . Siege Activations . | . . . . . . . . . . . . . . Robots Corrupted . | . . . . . . . . . . . . . . Combat Hostiles . | . . . . . . . . . . . . . . Parts Fried . | . . . . . . . . . . . . . . Impact Corruptions . | . . . . . . . . . . . . . . Robots Melted . | . . . . . . . . . . . . . . Combat Hostiles . | . . . . . . . . . . . . . . Parts Melted . | . . . . . . . . . . . . . . Heat Transferred . | . . . . . . . . . . . . . . Parts Sabotaged . | . . . . . . . . . . . . . . Parts Stolen . | . . . . . . . . . . . . . . Parts Stripped . | . . . . . . . . . . . . . . Power Chain Reactions . | . . . . . . . . . . . . . . Missiles Intercepted . | . . . . . . . . . . . . . . Alert | -11 -10 -9 -9 -9 -8 -8 -7 -6 -5 -4 -3 -2 -1 ------- Run | Scr Mat Mat Min Exi Min Mat Fac Fac Fac Fac Res Res Acc Peak Influence 176 | . 45 176 68 . 119 135 129 93 107 123 49 62 130 Initial 68 | . . 18 68 . . 46 42 63 45 51 7 27 36 Average 65 | . 25 94 68 . 115 61 82 79 73 97 21 28 60 Maximum Alert Level . | . . . . . . . . . . . . . . Low Security (%) 100 | 100 100 100 100 . 100 100 100 100 100 100 100 100 100 Level 1 . | . . . . . . . . . . . . . . Level 2 . | . . . . . . . . . . . . . . Level 3 . | . . . . . . . . . . . . . . Level 4 . | . . . . . . . . . . . . . . Level 5 . | . . . . . . . . . . . . . . High Security . | . . . . . . . . . . . . . . Max Security . | . . . . . . . . . . . . . . Squads Dispatched 14 | . 1 1 . . . 1 1 1 1 1 2 4 1 Investigation 7 | . . . . . . . . . . 1 2 3 1 Extermination 2 | . . . . . . . . 1 . . . 1 . Reinforcement 4 | . 1 1 . . . . 1 . 1 . . . . Assault . | . . . . . . . . . . . . . . Garrison 1 | . . . . . . 1 . . . . . . . Intercept . | . . . . . . . . . . . . . . Construction Impeded . | . . . . . . . . . . . . . . Haulers Reinforced 1 | . . . . . . . . . 1 . . . . Stealth | -11 -10 -9 -9 -9 -8 -8 -7 -6 -5 -4 -3 -2 -1 --------- Run | Scr Mat Mat Min Exi Min Mat Fac Fac Fac Fac Res Res Acc Distress Signals 6 | . 1 2 . . . 1 1 . . . 1 . . Communications Jammed . | . . . . . . . . . . . . . . Distress Signals . | . . . . . . . . . . . . . . Times Spotted 76 | . 6 15 . . 4 10 11 1 5 11 4 7 2 Peak Tracking Total 8 | . 8 7 . . 4 7 7 1 4 7 4 7 1 Tactical Retreats 7 | . . 1 . . . 1 2 . 1 2 . . . Traps | -11 -10 -9 -9 -9 -8 -8 -7 -6 -5 -4 -3 -2 -1 ------- Run | Scr Mat Mat Min Exi Min Mat Fac Fac Fac Fac Res Res Acc Traps Triggered 4 | . . . . . . . . . . 2 2 . . Indirectly . | . . . . . . . . . . . . . . Trap Hack Attempts . | . . . . . . . . . . . . . . Triggered . | . . . . . . . . . . . . . . Disarmed . | . . . . . . . . . . . . . . Reprogrammed . | . . . . . . . . . . . . . . Reused . | . . . . . . . . . . . . . . Traps Extracted . | . . . . . . . . . . . . . . Installed . | . . . . . . . . . . . . . . Triggered . | . . . . . . . . . . . . . . Machines | -11 -10 -9 -9 -9 -8 -8 -7 -6 -5 -4 -3 -2 -1 ---------- Run | Scr Mat Mat Min Exi Min Mat Fac Fac Fac Fac Res Res Acc Machines Disabled . | . . . . . . . . . . . . . . Max in Single Turn . | . . . . . . . . . . . . . . Garrison Access 1 | . . . . . . . . . . . 1 . . Machines Sabotaged . | . . . . . . . . . . . . . . Garrisons Compromised . | . . . . . . . . . . . . . . Overloaded Fab Kills . | . . . . . . . . . . . . . . Fab Network Shutdowns . | . . . . . . . . . . . . . . Hacking | -11 -10 -9 -9 -9 -8 -8 -7 -6 -5 -4 -3 -2 -1 --------- Run | Scr Mat Mat Min Exi Min Mat Fac Fac Fac Fac Res Res Acc Machines Accessed 22 | . . 1 . . . 2 2 3 1 2 4 3 4 Terminals 20 | . . 1 . . . 2 1 3 1 2 3 3 4 Fabricators . | . . . . . . . . . . . . . . Repair Stations . | . . . . . . . . . . . . . . Recycling Units . | . . . . . . . . . . . . . . Scanalyzers . | . . . . . . . . . . . . . . Garrison Access 2 | . . . . . . . 1 . . . 1 . . Total Hacks 57 | . . 1 . . . 6 4 10 4 7 9 9 7 Successful 26 | . . 1 . . . 4 2 6 3 3 2 2 3 Failed 31 | . . . . . . 2 2 4 1 4 7 7 4 Catastrophic 5 | . . . . . . . . . . 1 1 2 1 Database Lockouts . | . . . . . . . . . . . . . . Manual 26 | . . 1 . . . 4 1 5 2 1 2 7 3 Terminals 53 | . . 1 . . . 6 2 10 4 7 7 9 7 Fabricators . | . . . . . . . . . . . . . . Repair Stations . | . . . . . . . . . . . . . . Recycling Units . | . . . . . . . . . . . . . . Scanalyzers . | . . . . . . . . . . . . . . Garrison Access 4 | . . . . . . . 2 . . . 2 . . Terminal Hacks 15 | . . 1 . . . 2 1 3 2 2 1 1 2 Open Door 1 | . . . . . . . . . . . . . 1 Level Access Points 4 | . . . . . . 1 1 . . . 1 1 . Branch Access Points 2 | . . 1 . . . . . 1 . . . . . Emergency Access Points 1 | . . . . . . 1 . . . . . . . Terminal Index 4 | . . . . . . . . 1 1 1 . . 1 Garrison Index 1 | . . . . . . . . 1 . . . . . Locate Traps 1 | . . . . . . . . . . 1 . . . Zone Layout 1 | . . . . . . . . . 1 . . . . Fabricator Hacks . | . . . . . . . . . . . . . . Repair Station Hacks . | . . . . . . . . . . . . . . Recycling Unit Hacks . | . . . . . . . . . . . . . . Scanalyzer . | . . . . . . . . . . . . . . Garrison Access Hacks 1 | . . . . . . . . . . . 1 . . Seal Access 1 | . . . . . . . . . . . 1 . . Unauthorized Hacks 10 | . . . . . . 2 1 3 1 1 . 1 1 Terminals 9 | . . . . . . 2 . 3 1 1 . 1 1 Assimilate 2 | . . . . . . . . 1 . . . . 1 Botnet 4 | . . . . . . . . 1 1 1 . 1 . Disrupt 2 | . . . . . . 2 . . . . . . . Operators 1 | . . . . . . . . 1 . . . . . Fabricators . | . . . . . . . . . . . . . . Repair Stations . | . . . . . . . . . . . . . . Recycling Units . | . . . . . . . . . . . . . . Scanalyzers . | . . . . . . . . . . . . . . Garrison Access 1 | . . . . . . . 1 . . . . . . Watchers 1 | . . . . . . . 1 . . . . . . Data Cores Recovered . | . . . . . . . . . . . . . . Used . | . . . . . . . . . . . . . . Hacking Detections 21 | . . . . . . 2 2 3 1 2 4 3 4 Full Trace Events 7 | . . . . . . . . . . 1 2 3 1 Feedback Events 2 | . . . . . . . . . . . 1 1 . Corruption 2 | . . . . . . . . . . . 1 1 . Feedback Blocked . | . . . . . . . . . . . . . . Robot Schematics Acquired . | . . . . . . . . . . . . . . Robots Built . | . . . . . . . . . . . . . . Matter . | . . . . . . . . . . . . . . Time . | . . . . . . . . . . . . . . Total Robot Build Rating . | . . . . . . . . . . . . . . Part Schematics Acquired . | . . . . . . . . . . . . . . Parts Built . | . . . . . . . . . . . . . . Matter . | . . . . . . . . . . . . . . Time . | . . . . . . . . . . . . . . Total Part Build Rating . | . . . . . . . . . . . . . . Parts Repaired . | . . . . . . . . . . . . . . Time . | . . . . . . . . . . . . . . Parts Recycled . | . . . . . . . . . . . . . . Recycled Matter . | . . . . . . . . . . . . . . Retrieved Matter . | . . . . . . . . . . . . . . Retrieved Components . | . . . . . . . . . . . . . . Parts Scanalyzed . | . . . . . . . . . . . . . . Part Schematics Acquired . | . . . . . . . . . . . . . . Parts Damaged . | . . . . . . . . . . . . . . Bothacking | -11 -10 -9 -9 -9 -8 -8 -7 -6 -5 -4 -3 -2 -1 ------------ Run | Scr Mat Mat Min Exi Min Mat Fac Fac Fac Fac Res Res Acc Used RIF Installer . | . . . . . . . . . . . . . . Robots Hacked . | . . . . . . . . . . . . . . Non-combat . | . . . . . . . . . . . . . . Combat . | . . . . . . . . . . . . . . Robot Hacks Applied . | . . . . . . . . . . . . . . Relay Couplers Released . | . . . . . . . . . . . . . . Robots Rewired . | . . . . . . . . . . . . . . Allies Hacked . | . . . . . . . . . . . . . . Hacks Repelled . | . . . . . . . . . . . . . . Allies | -11 -10 -9 -9 -9 -8 -8 -7 -6 -5 -4 -3 -2 -1 -------- Run | Scr Mat Mat Min Exi Min Mat Fac Fac Fac Fac Res Res Acc Total Allies 7 | . . . 5 . . . . 1 . . . . 1 Largest Group 5 | . . . 5 5 3 3 . 1 1 . . . 1 Highest-Rated Group 85 | . . . 85 85 40 40 . 10 10 . . . 26 Highest-Rated Ally 31 | . . . 31 31 16 16 . 10 10 . . . 26 Total Orders 2 | . . . . . 2 . . . . . . . . STAY 1 | . . . . . 1 . . . . . . . . FOLLOW 1 | . . . . . 1 . . . . . . . . Ally Attacks 29 | . . . . . 13 16 . . . . . . . Total Damage 367 | . . . . . 164 203 . . . . . . . Kills 7 | . . . . . 4 3 . . . . . . . Allies Corrupted . | . . . . . . . . . . . . . . Allies Melted . | . . . . . . . . . . . . . . Intel | -11 -10 -9 -9 -9 -8 -8 -7 -6 -5 -4 -3 -2 -1 ------- Run | Scr Mat Mat Min Exi Min Mat Fac Fac Fac Fac Res Res Acc Robot Analysis Total . | . . . . . . . . . . . . . . Derelict Logs Recovered 1 | . . . 1 . . . . . . . . . . Drone Launches . | . . . . . . . . . . . . . . Drone Recoveries . | . . . . . . . . . . . . . . Exploration | -11 -10 -9 -9 -9 -8 -8 -7 -6 -5 -4 -3 -2 -1 ------------- Run | Scr Mat Mat Min Exi Min Mat Fac Fac Fac Fac Res Res Acc Turns Passed 2568 | 9 36 89 78 180 162 126 209 271 119 434 349 365 141 Spaces Moved 3370 | 18 71 128 112 157 194 88 349 359 201 772 443 198 280 Core 3370 | 18 71 128 112 157 194 88 349 359 201 772 443 198 280 Treads . | . . . . . . . . . . . . . . Legs . | . . . . . . . . . . . . . . Wheels . | . . . . . . . . . . . . . . Hover . | . . . . . . . . . . . . . . Flight . | . . . . . . . . . . . . . . Fastest Speed 50 | 50 50 50 50 50 50 50 50 50 50 50 50 50 50 Average Speed 50 | 50 50 50 50 50 50 50 50 50 50 50 50 50 50 Slowest Speed 50 | 50 50 50 50 50 50 50 50 50 50 50 50 50 50 Overloaded Moves . | . . . . . . . . . . . . . . Propulsion Burnouts . | . . . . . . . . . . . . . . Robots Hopped . | . . . . . . . . . . . . . . Cave-ins Triggered . | . . . . . . . . . . . . . . Exploration Rate (%) 20 | 3 24 21 28 54 51 14 13 8 8 22 19 7 12 Regions Visited 13 Branch Regions 3 Pre-discovered Areas 1 | . . . 1 . . . . . . . . . . Known Exits Taken 5 | . . 1 . . . 1 1 . . . 1 1 . Unknown Exits Taken 8 | 1 1 . 1 1 1 . . 1 1 1 . . . Scrap Searched 1 | . . . . . 1 . . . . . . . . Spaces Dug . | . . . . . . . . . . . . . . Terrain Destroyed . | . . . . . . . . . . . . . . Melee . | . . . . . . . . . . . . . . Projectile . | . . . . . . . . . . . . . . AOE . | . . . . . . . . . . . . . . Terrain Rammed . | . . . . . . . . . . . . . . Walls Destroyed . | . . . . . . . . . . . . . . Machines Disabled . | . . . . . . . . . . . . . . Actions | -11 -10 -9 -9 -9 -8 -8 -7 -6 -5 -4 -3 -2 -1 --------- Run | Scr Mat Mat Min Exi Min Mat Fac Fac Fac Fac Res Res Acc Total 4236 | 17 70 152 133 257 258 169 382 449 218 819 569 463 280 Wait 832 | . . . 22 98 65 82 34 91 16 48 110 265 1 Move 3356 | 17 70 127 111 156 193 87 348 358 200 771 442 197 279 Hop . | . . . . . . . . . . . . . . Pick Up 3 | . . . . 3 . . . . . . . . . Fast Attach . | . . . . . . . . . . . . . . Attach . | . . . . . . . . . . . . . . Detach . | . . . . . . . . . . . . . . Swap . | . . . . . . . . . . . . . . Drop . | . . . . . . . . . . . . . . Fire . | . . . . . . . . . . . . . . Melee . | . . . . . . . . . . . . . . Ram 30 | . . 25 . . . . . . 2 . 2 1 . Kick . | . . . . . . . . . . . . . . Crush . | . . . . . . . . . . . . . . Escape Stasis 15 | . . . . . . . . . . . 15 . . Rewire . | . . . . . . . . . . . . . . Trap . | . . . . . . . . . . . . . . Miscellaneous . | . . . . . . . . . . . . . . Route ------- -11/Scrapyard -10/Materials -9/Materials -9/Mines -9/Exiles -8/Mines -8/Materials (discovered 3 exits: *Fac x3) -7/Factory (discovered 4 exits: *Fac x4) -6/Factory (discovered 5 exits: *Fac / Low x2 / Ext x2) -5/Factory -4/Factory (discovered 2 exits: *Res x2) -3/Research (discovered 3 exits: *Res x3) -2/Research (discovered 3 exits: *Acc x3) -1/Access To Epsilon Eridani History --------- Turn | Location | Event 3 | -11/Scrapyard | Discovered new exit (range 15) 10 | -11/Scrapyard | Entered Materials 41 | -10/Materials | Core integrity fell below 50% 44 | -10/Materials | Discovered new exit (range 4) 46 | -10/Materials | Entered another Materials area 46 | -9/Materials | Evolved 2 slots: Power x2 98 | -9/Materials | Core integrity fell below 50% 104 | -9/Materials | Identified exit to Mines 135 | -9/Materials | Entered Mines 141 | -9/Mines | Met a Derelict bent on vengeance 150 | -9/Mines | Assisted by bots powering up and referring to "LRC-V3" 163 | -9/Mines | Learned location of Storage (-8) 189 | -9/Mines | Deemed a non-threat by the Exiles lab entrance 189 | -9/Mines | Discovered new exit (range 5) 213 | -9/Mines | Entered Exiles 213 | -9/Exiles | Accompanied by 5 allies 231 | -9/Exiles | Met 8R-AWN 239 | -9/Exiles | Met EX-HEX 243 | -9/Exiles | Led the pair of lost Derelicts to a safe place 253 | -9/Exiles | Met EX-BIN 258 | -9/Exiles | Aligned with FarCom system 259 | -9/Exiles | Given EX-Vault access code 273 | -9/Exiles | Met EX-DEC 291 | -9/Exiles | Discovered new exit (range 10) 305 | -9/Exiles | Build established: Mutant 393 | -9/Exiles | Entered Mines 393 | -8/Mines | Accompanied by 3 allies 517 | -8/Mines | Discovered new exit (range 14) 555 | -8/Mines | Entered Materials 555 | -8/Materials | Accompanied by 3 allies 555 | -8/Materials | Evolved 2 slots: Power x2 556 | -8/Materials | Identified exit to Factory 650 | -8/Materials | Garrison activated, responded to threat 681 | -8/Materials | Entered Factory 681 | -7/Factory | Evolved 2 slots: Power x2 812 | -7/Factory | Identified exit to Factory 890 | -7/Factory | Entered another Factory area 890 | -6/Factory | Evolved 2 slots: Power x2 1135 | -6/Factory | Discovered new exit (range 15) 1150 | -6/Factory | Identified exit to Lower Caves 1150 | -6/Factory | Identified exit to Extension 1161 | -6/Factory | Entered another Factory area 1161 | -5/Factory | Accompanied by 1 ally 1161 | -5/Factory | Evolved 2 slots: Power x2 1180 | -5/Factory | Spotted B-75 Beast 1270 | -5/Factory | Discovered new exit (range 13) 1280 | -5/Factory | Entered another Factory area 1280 | -4/Factory | Evolved 2 slots: Power x2 1382 | -4/Factory | Discovered new exit (range 14) 1656 | -4/Factory | Spotted B-86 Titan 1708 | -4/Factory | Discovered new exit (range 13) 1714 | -4/Factory | Entered Research 1714 | -3/Research | Evolved 2 slots: Power x2 1915 | -3/Research | Identified exit to Research 2063 | -3/Research | Entered another Research area 2063 | -2/Research | Evolved 2 slots: Power x2 2403 | -2/Research | Identified exit to Access 2428 | -2/Research | Entered Access 2428 | -1/Access | Evolved 2 slots: Power x2 2567 | -1/Access | Discovered new exit (range 6) 2569 | *** | Escaped! Last Messages --------------- Found 24 terminals. Downloaded coordinate data. 02526_ O-24 Administrator: "IFF HANDSHAKE FAILED. SECURING TERMINAL." 02527_ Connecting with Terminal... >>Trojan(Assimilate) Trojan loaded successfully. Testing... System interface override in place. 02530_ O-24 Administrator accesses terminal... 02530_ O-24 Administrator IFF database reprogrammed. 02548_ Administrator 10a reveals location of Segregator Trap. 02554_ Connecting with Terminal... 02554_ ALERT: Suspicious activity at Terminal A016. Dispatching Investigation squad. 02565_ Connecting with Terminal... >>Open Sealed Barrier opened. 02567_ The Access Shell folds into the floor. 02567_ EXIT=FOUND [Achievement: The Little Core That Could] Map ----- +----------------------------------------------------+ | ?????????????????????????????????????????????????? | | ?????????????????????????????????????????????????? | | ?????????????????????????????????????????????????? | | ?????????????????????????????????????????????????? | | ?????????????????????????????????????????????????? | | ?????????????????????????????????????????????????? | | ?????????????????????????????????????????????????? | | ?????????????????????????????????????????????????? | | ?????????????????????????????????????????????????? | | ?????????????????????????????????????????????????? | | ??????????????????????????????????????Y??????????? | | ?????????????????????????????????????????????????? | | ?????????????????????????????????????????????????? | | ?????????????????????????????????????? ?????????? | | ?????????????????????????????????????? #????????? | | ?????????????????????????????????????? #????????? | | ?????????????????????????????????????? #????????? | | ?????????????????????????????????????? #????????? | | ?????????????????????????????????????? #????????? | | ?????????????????????????????###?????? #????????? | | ????????????????????########## ####### #????????? | | ????????????????????" #????????? | | ??????????????BB????" #????????? | | ??????????????BB????" ########## | | ????????????????????" ## " | | ????????????????????" "@ ## "" | | ????????????????????" "" ## """ | | ????????????????????" o ## " | | ??????????????BB????" ##"" | | ??????????????BB????" """ """ ##"" | | ????????????????????" """T""" ##"" | | ????????????????????########## ####### ##T | | ?????????????????????????????###?????# ##"" | | ?????????????????????????????????????# ##"" | | ?????????????????????????????????????# ##"" | | ?????????????????????????????????????# ## | | ?????????????????????????????????????# ## | | ?????????????????????????????????????# ###+##/### | | ?????????????????????????????????????# | | ?????????????????????????????????????# ^ | | ?????????????????????????????????????########+#### | | ?????????????????????????????????????????????????? | | ?????????????????????????????????????????????????? | | ?????????????????????????????????????????????????? | | ?????????????????????????????????????????????????? | | ?????????????????????????????????????????????????? | | ?????????????????????????????????????????????????? | | ?????????????????????????????????????????????????? | | ?????????????????????????????????????????????????? | | ?????????????????????????????????????????????????? | +----------------------------------------------------+ Best States ------------- Heat Dissipation 52 Energy Generation 5 Energy Capacity 100 Matter Stores 300 Matter Capacity 300 Sight Range 16 Terrain Scan Density 10 Evasion (%) 50 Item Schematics ----------------- None Robot Schematics ------------------ None Fabricated ------------ Nothing Alien Tech Used ----------------- None Achievements -------------- The Little Core That Could Challenges ------------ None Game ------ Seed RagnarokColdThrusters Manual? 0 Play Time 00:32:13 Cumulative 334.3 hours Start 2020.09.22 @ 10:38:01 End 2020.09.22 @ 11:07:54 Sessions 1 Manual Loads 0 Difficulty Rogue Special Mode None Game No. 594 Rogue 594 Adventurer 0 Explorer 0 Win Type 0 Total 51 Types 38/4/3/2/1/1/2/0/0 Lore% 93 Gallery% 90 Achievement% 73 Wizard Run 0 Options --------- ASCII 1 Keyboard 1 Movement Numpad Keybinds 0 Fullscreen 2 Font 24/Terminus Map View 76x50 Tactical HUD 1 Map Filters NONE Filters NONE Steam 1 RUN: b5ab4b5e-bf6a-4d4a-b719-a718f845ac8e